Cogmind - Beta 15 @@@ ROGUE MODE // 2025.09.17 @ 19:20:58 Player: Pilow64 Result: Destroyed by S-10 Pest with Light Assault Rifle Performance ------------- Evolutions (2) 1000 Regions Visited (5) 1000 Robots Destroyed (28) 140 Value Destroyed (789) 789 Prototype IDs (0) 0 Alien Tech Used (0) 0 Bonus (0) 0 TOTAL SCORE: 2929 Bonus ------- None Cogmind --------- Core Integrity 0/550 Matter 270/300 Energy 88/100 System Corruption 0% Temperature Cool (0) Movement Core (700) Ox13 Location -8/Materials Parts ------- > --- POWER (2) -------- (None) > --- PROPULSION (3) --- (None) > --- UTILITY (4) ------ High-capacity Storage Unit Power Shielding Weapon Shielding > --- WEAPON (2) ------- (None) > --- INVENTORY (20) --- Large Storage Unit Large Storage Unit Medium Battery (150) High-capacity Battery (250) Recoil Stabilizer Peak State ------------ > --- POWER ------------ Light Ion Engine Light Ion Engine > --- PROPULSION ------- Wheel Wheel Compact Wheel > --- UTILITY ---------- High-capacity Storage Unit High-capacity Matter Pod Makeshift Transmission Jammer Makeshift Hacking Suite > --- WEAPON ----------- Autogun Grenade Launcher > --- INVENTORY -------- Light Ion Engine Light Treads Large Storage Unit Large Storage Unit Medium Battery High-capacity Battery Power Shielding Weapon Shielding Assault Rifle Makeshift Hammer [Rating: 20] Favorites ----------- Power Makeshift Power Source Engine Makeshift Power Source Propulsion Light Treads Treads Light Treads Wheel Wheel Utility High-capacity Matter Pod Device Makeshift Transmission Jammer Storage High-capacity Matter Pod Hackware Makeshift Hacking Suite Protection Improved Light Armor Plating Weapon Grenade Launcher Ballistic Gun Light Assault Rifle Ballistic Cannon Assault Cannon Launcher Grenade Launcher Build | -11 -10 -10 -10 -9 -8 ------- Run | Yrd Mat Min Exi Min Mat Slots Evolved 4 | . . . . . 4 Power 1 | . . . . . 1 Propulsion 1 | . . . . . 1 Utility 2 | . . . . . 2 Weapon . | . . . . . . Parts Attached 30 | 6 5 1 2 7 9 Power 5 | 1 . . 1 1 2 Engine 5 | 1 . . 1 1 2 Core . | . . . . . . Reactor . | . . . . . . Propulsion 7 | 2 1 . . 4 . Treads 3 | 2 1 . . . . Leg . | . . . . . . Wheel 4 | . . . . 4 . Hover . | . . . . . . Flight . | . . . . . . Utility 11 | 1 3 . 1 . 6 Device 1 | . . . . . 1 Storage 6 | 1 3 . 1 . 1 Processor . | . . . . . . Hackware 1 | . . . . . 1 Protection 3 | . . . . . 3 Artifact . | . . . . . . Weapon 7 | 2 1 1 . 2 1 Energy Gun . | . . . . . . Energy Cannon . | . . . . . . Ballistic Gun 3 | 2 . . . 1 . Ballistic Cannon 1 | . . . . . 1 Launcher 3 | . 1 1 . 1 . Special Weapon . | . . . . . . Impact Weapon . | . . . . . . Slashing Weapon . | . . . . . . Piercing Weapon . | . . . . . . Special Melee Weapon . | . . . . . . Unidentified Prototypes . | . . . . . . Parts Lost 18 | . . 1 . 2 15 Power 3 | . . . . . 3 Propulsion 6 | . . . . 2 4 Utility 4 | . . . . . 4 Weapon 5 | . . 1 . . 4 Highest Loss Streak 8 | . . 1 . 1 8 To Critical Strikes . | . . . . . . Average Backups 11 | . 5 9 12 13 10 Power . | . . . . 1 . Propulsion 1 | . . 1 2 1 1 Utility 6 | . 3 6 7 8 7 Weapon 2 | . 1 1 2 2 1 Tool/Special . | . . . . . . Unused Backups 11 | 1 5 . 1 . 4 Power 1 | 1 . . . . . Propulsion . | . . . . . . Utility 9 | . 5 . 1 . 3 Weapon 1 | . . . . . 1 Tool/Special . | . . . . . . Average Slot Usage (%) 97 | . 98 99 100 98 77 Engine 13 | . 14 14 14 14 11 Treads 25 | . 28 28 28 23 . Wheel 1 | . . . . 2 16 Storage 27 | . 26 28 28 28 17 Ballistic Gun 13 | . 14 14 14 14 7 Launcher 13 | . 13 13 14 14 5 Peak Build Rating 20 | 6 7 8 12 12 20 Average Rating 10 | 4 6 7 11 11 16 On Entrance 7 | . 6 7 8 12 10 Naked Turns . | . . . . . . Heaviest Build 61 | 13 33 33 53 53 61 Greatest Support 40 | 40 40 40 40 40 36 Greatest Overweight (x) 19 | . . . 1 3 19 Average Overweight (x) . | . . . . 1 1 Largest Inventory Capacity 20 | 8 15 15 20 20 20 Average Capacity 17 | 7 10 15 19 20 20 Most Carried 15 | 2 9 10 14 15 13 Average Carried 11 | . 5 9 12 13 10 Final Capacity 20 | 8 15 15 20 20 20 Final Carried 14 | . 9 10 14 14 5 Class Distribution -------------------- 95% | Mutant 4% | Scavenger-Mutant Dominant Class ---------------- Mutant | -10/Materials Mutant | -10/Mines Mutant | -10/Exiles Mutant | -9/Mines Scavenger-Mutant | -8/Materials Resources | -11 -10 -10 -10 -9 -8 ----------- Run | Yrd Mat Min Exi Min Mat Matter Collected 1140 | 251 241 99 221 268 60 Remotely . | . . . . . . Salvage Created 634 | . 230 73 98 11 222 Parts 40 | . 18 6 3 . 13 Haulers Intercepted 1 | . 1 . . . . Recyclers Shooed . | . . . . . . Parts Field Recycled . | . . . . . . Retrieved Matter . | . . . . . . Parts Self-Destructed . | . . . . . . Prevented . | . . . . . . Kills | -11 -10 -10 -10 -9 -8 ------- Run | Yrd Mat Min Exi Min Mat Combat Hostiles Destroyed 24 | . 9 4 1 4 6 Guns 4 | . . . . 1 3 AOE 20 | . 9 4 1 3 3 Classes Destroyed 11 | . 7 . . 1 3 Worker 2 | . 2 . . . . Builder 1 | . 1 . . . . Hauler 1 | . 1 . . . . Recycler 1 | . . . . . 1 Operator 1 | . 1 . . . . Watcher 2 | . 2 . . . . Swarmer 5 | . 3 . . . 2 Grunt 12 | . 6 4 1 . 1 Brawler 1 | . . . . . 1 Sentry 2 | . . . . . 2 Assembled 4 | . . . . 4 . Best Kill Streak 7 | . 7 4 1 1 6 Combat Bots Only 6 | . 4 4 1 1 6 Max Kills in Single Turn 3 | . 3 1 1 1 2 Gunslinging . | . . . . . . Exploded 2 | . 2 1 1 1 2 Melee . | . . . . . . Uniques/NPCs Destroyed . | . . . . . . Combat | -11 -10 -10 -10 -9 -8 -------- Run | Yrd Mat Min Exi Min Mat Hostile Shots Fired 202 | . 29 9 . 10 154 Missed 39 | . 5 3 . 3 28 Hits 163 | . 24 6 . 7 126 Melee 1 | . . . . 1 . Projectile 162 | . 24 6 . 6 126 Critical Strikes 4 | . . . . . 4 Damage Taken 2473 | . 374 102 . 305 1692 Core 699 | . 90 53 . 4 552 Absorbed by Shields . | . . . . . . Redirected to Shielding 9 | . . . . . 9 Core Remaining (%) 70 | 100 . . . 41 . Volleys Fired 73 | . 30 8 5 12 18 Largest 2 | . 2 2 2 2 2 Hottest 57 | . 50 50 50 50 57 Shots Fired 127 | . 50 13 10 24 30 Gun 73 | . 30 8 5 12 18 Cannon 1 | . . . . . 1 Launcher 53 | . 20 5 5 12 11 Special . | . . . . . . Kinetic 74 | . 30 8 5 12 19 Thermal . | . . . . . . Explosive 53 | . 20 5 5 12 11 Electromagnetic . | . . . . . . Robot Hit Streak 7 | . 5 5 2 4 7 Robot Miss Streak 2 | . 2 1 2 2 1 Penetration Max . | . . . . . . Secondary Targets . | . . . . . . Shots Hit Robots 69 | . 30 8 5 13 13 Core Hits 62 | . 20 8 11 8 15 Critical Kills . | . . . . . . Critical Parts Destroyed . | . . . . . . Critical Strikes . | . . . . . . Melee Attacks . | . . . . . . Impact . | . . . . . . Slashing . | . . . . . . Piercing . | . . . . . . Sneak Attacks . | . . . . . . Combat Hostiles . | . . . . . . Follow-up Attacks . | . . . . . . Damage Inflicted 2738 | . 1172 435 349 327 455 Guns 347 | . 104 29 17 50 147 Cannons 21 | . . . . . 21 Explosions 2370 | . 1068 406 332 277 287 Melee . | . . . . . . Ramming . | . . . . . . Kinetic 368 | . 104 29 17 50 168 Thermal . | . . . . . . Explosive 2370 | . 1068 406 332 277 287 Electromagnetic . | . . . . . . Impact . | . . . . . . Slashing . | . . . . . . Piercing . | . . . . . . Highest Corruption . | . . . . . . Average Corruption . | . . . . . . Corruption Purged . | . . . . . . Corruption Blocked . | . . . . . . Overload Shots . | . . . . . . Overflow Damage 29 | . . . 21 7 1 Projectiles 1 | . . . . . 1 Explosions 28 | . . . 21 7 . Melee . | . . . . . . Knockbacks 2 | . . . . . 2 Impact . | . . . . . . Kinetic 1 | . . . . . 1 Secondary 1 | . . . . . 1 Self-Inflicted Damage 349 | . 122 24 . 172 31 Shots 15 | . 5 1 . 8 1 Rammed . | . . . . . . Targets Rammed . | . . . . . . Kicked . | . . . . . . Crushed . | . . . . . . Highest Temperature 97 | . 26 28 25 70 97 Average Temperature 23 | . 10 12 12 26 43 Received Heat Transfer 842 | . 87 42 . 20 693 Siege Activations . | . . . . . . Martial Activations . | . . . . . . Shielding Activations . | . . . . . . Robots Disrupted . | . . . . . . Combat Hostiles . | . . . . . . Robots Corrupted . | . . . . . . Combat Hostiles . | . . . . . . Parts Fried . | . . . . . . Impact Corruptions 1 | . . . . . 1 Robots Melted . | . . . . . . Combat Hostiles . | . . . . . . Parts Melted . | . . . . . . Heat Transferred . | . . . . . . Parts Sabotaged . | . . . . . . Parts Stolen . | . . . . . . Parts Stripped . | . . . . . . Power Chain Reactions . | . . . . . . Alert | -11 -10 -10 -10 -9 -8 ------- Run | Yrd Mat Min Exi Min Mat Maximum Alert Level 1 | . 1 . . . . Low Security (%) 99 | 100 97 100 . 100 100 Level 1 . | . 2 . . . . Level 2 . | . . . . . . Level 3 . | . . . . . . Level 4 . | . . . . . . Level 5 . | . . . . . . High Security . | . . . . . . Max Security . | . . . . . . Peak Influence 218 | . 218 196 . 55 116 Initial 84 | . . 84 . . . Average 55 | . 105 149 . 8 28 Influence Increases 916 | . 418 142 25 116 215 Destroy 0b10 Robot/C 400 | . 180 80 20 . 120 Destroy 0b10 Robot/NC 45 | . 35 . 5 . 5 Destroy Leader 106 | . 46 20 . . 40 Successful Hack 10 | . 10 . . . . Disable Machine 135 | . 60 15 . 60 . Destroy Structure 205 | . 87 27 . 56 35 Lose Combat Pursuer 15 | . . . . . 15 Influence Decreases 901 | . 200 214 171 116 200 Entered New Map 280 | . . 134 146 . . Time Decay 465 | . 200 70 25 96 74 Lost Part 156 | . . 10 . 20 126 Squads Dispatched 5 | . 2 . . . 3 Investigation . | . . . . . . Extermination . | . . . . . . Reinforcement 2 | . 2 . . . . Assault . | . . . . . . Garrison 3 | . . . . . 3 Intercept . | . . . . . . Searches Triggered . | . . . . . . Construction Impeded . | . . . . . . Haulers Reinforced . | . . . . . . Active Scanning Responses . | . . . . . . Cargo Convoy Interrupts . | . . . . . . Stealth | -11 -10 -10 -10 -9 -8 --------- Run | Yrd Mat Min Exi Min Mat Distress Signals 1 | . 1 . . . . Communications Jammed . | . . . . . . Distress Signals . | . . . . . . Times Spotted 35 | . 14 4 . 5 12 Peak Tracking Total 4 | . 3 4 . 2 4 Tactical Retreats 2 | . . . . 1 1 Traps | -11 -10 -10 -10 -9 -8 ------- Run | Yrd Mat Min Exi Min Mat Traps Triggered . | . . . . . . Indirectly . | . . . . . . Trap Hack Attempts . | . . . . . . Triggered . | . . . . . . Disarmed . | . . . . . . Reprogrammed . | . . . . . . Reused . | . . . . . . Traps Extracted . | . . . . . . Installed . | . . . . . . Triggered . | . . . . . . Machines | -11 -10 -10 -10 -9 -8 ---------- Run | Yrd Mat Min Exi Min Mat Machines Disabled 10 | . 5 1 . 4 . Max in Single Turn 2 | . 1 1 . 2 . Machines Repaired . | . . . . . . Machines Dismantled . | . . . . . . Machines Sabotaged . | . . . . . . Overloaded Fab Kills . | . . . . . . Hacking | -11 -10 -10 -10 -9 -8 --------- Run | Yrd Mat Min Exi Min Mat Machines Accessed 7 | . 2 . 4 . 1 Terminals 2 | . 1 . . . 1 Fabricators . | . . . . . . Repair Stations . | . . . . . . Recycling Units 1 | . 1 . . . . Scanalyzers . | . . . . . . Garrison Access . | . . . . . . Total Hacks 52 | . 2 . 49 . 1 Successful 52 | . 2 . 49 . 1 Failed . | . . . . . . Catastrophic . | . . . . . . Database Lockouts . | . . . . . . Manual . | . . . . . . Terminals 2 | . 1 . . . 1 Fabricators . | . . . . . . Repair Stations . | . . . . . . Recycling Units 1 | . 1 . . . . Scanalyzers . | . . . . . . Garrison Access . | . . . . . . Terminal Hacks 51 | . 1 . 49 . 1 Record 50 | . . . 49 . 1 Alert Level 1 | . 1 . . . . Fabricator Hacks . | . . . . . . Repair Station Hacks . | . . . . . . Recycling Unit Hacks 1 | . 1 . . . . Recycle Component 1 | . 1 . . . . Scanalyzer . | . . . . . . Garrison Access Hacks . | . . . . . . Unauthorized Hacks . | . . . . . . Terminals . | . . . . . . Fabricators . | . . . . . . Repair Stations . | . . . . . . Recycling Units . | . . . . . . Scanalyzers . | . . . . . . Garrison Access . | . . . . . . Data Cores Recovered . | . . . . . . Used . | . . . . . . Hacking Detections . | . . . . . . Full Trace Events . | . . . . . . Feedback Events . | . . . . . . Feedback Blocked . | . . . . . . Robot Schematics Acquired . | . . . . . . Robots Built . | . . . . . . Authchips . | . . . . . . Time . | . . . . . . Total Robot Build Rating . | . . . . . . Part Schematics Acquired . | . . . . . . Parts Built . | . . . . . . Authchips . | . . . . . . Time . | . . . . . . Total Part Build Rating . | . . . . . . Parts Repaired . | . . . . . . Time . | . . . . . . Parts Recycled 1 | . 1 . . . . Recycled Matter . | . . . . . . Retrieved Matter . | . . . . . . Retrieved Components . | . . . . . . Parts Scanalyzed . | . . . . . . Part Schematics Acquired . | . . . . . . Parts Damaged . | . . . . . . Bothacking | -11 -10 -10 -10 -9 -8 ------------ Run | Yrd Mat Min Exi Min Mat Used RIF Installer . | . . . . . . Robots Hacked . | . . . . . . Non-combat . | . . . . . . Combat . | . . . . . . Robot Hacks Applied . | . . . . . . Relay Couplers Released . | . . . . . . Fabnet Peak Effective % . | . . . . . . Robots Rewired . | . . . . . . Allies Hacked . | . . . . . . Hacks Repelled . | . . . . . . Allies | -11 -10 -10 -10 -9 -8 -------- Run | Yrd Mat Min Exi Min Mat Total Allies . | . . . . . . Largest Group . | . . . . . . Highest-Rated Group . | . . . . . . Highest-Rated Ally . | . . . . . . Total Orders . | . . . . . . Ally Attacks . | . . . . . . Total Damage . | . . . . . . Kills . | . . . . . . Allies Corrupted . | . . . . . . Allies Melted . | . . . . . . Intel | -11 -10 -10 -10 -9 -8 ------- Run | Yrd Mat Min Exi Min Mat Active Infowar (turns) 259 | . . . . . 259 Jamming 259 | . . . . . 259 Robot Analysis Total . | . . . . . . Derelict Logs Recovered 3 | . . . . 3 . Drone Launches . | . . . . . . Drone Recoveries . | . . . . . . Exploration | -11 -10 -10 -10 -9 -8 ------------- Run | Yrd Mat Min Exi Min Mat Turns Passed 4199 | 144 593 153 2405 613 291 Spaces Moved 1890 | 74 304 80 1030 253 149 Core 9 | 5 . . . . 4 Treads 1685 | 69 304 80 1030 201 1 Legs . | . . . . . . Wheels 196 | . . . . 52 144 Hover . | . . . . . . Flight . | . . . . . . Fastest Speed 50 | 50 160 160 160 105 101 Average Speed 204 | 152 160 160 231 221 125 Slowest Speed 1000 | 160 160 160 240 320 1000 Overloaded Moves . | . . . . . . Propulsion Burnouts . | . . . . . . Robots Hopped . | . . . . . . Potential Cave-ins . | . . . . . . Cave-ins Triggered . | . . . . . . Exploration Rate (%) 43 | 5 55 21 92 67 20 Regions Visited 5 Branch Regions 3 Pre-discovered Areas 1 | . . . 1 . . Known Exits Taken . | . . . . . . Unknown Exits Taken 5 | 1 1 1 1 1 . Scrap Searched 2 | . . 1 . 1 . Spaces Dug . | . . . . . . Terrain Destroyed 256 | . 83 32 16 87 38 Melee . | . . . . . . Projectile . | . . . . . . AOE 256 | . 83 32 16 87 38 Terrain Rammed . | . . . . . . Walls Destroyed . | . . . . . . Machines Disabled . | . . . . . . Actions | -11 -10 -10 -10 -9 -8 --------- Run | Yrd Mat Min Exi Min Mat Total 2124 | 106 367 94 1044 284 229 Wait 72 | 19 8 4 . . 41 Move 1885 | 73 303 79 1029 252 149 Hop . | . . . . . . Pick Up 41 | 7 16 2 6 7 3 Fast Attach . | . . . . . . Attach 24 | 6 1 1 . 2 14 Detach 3 | . . . . . 3 Swap 12 | . 4 . 2 6 . Drop 14 | 1 5 . 2 5 1 Fire 73 | . 30 8 5 12 18 Melee . | . . . . . . Ram . | . . . . . . Kick . | . . . . . . Crush . | . . . . . . Escape Stasis . | . . . . . . Rewire . | . . . . . . Trap . | . . . . . . Miscellaneous . | . . . . . . Route ------- -11/Scrapyard -10/Materials (discovered 2 exits: [*Mat] / [*Min]) -10/Mines -10/Exiles (discovered 2 exits: [*Min x2]) -9/Mines -8/Materials (discovered 1 exit: Fac) History --------- Turn | Location | Event 62 | -11/Scrapyard | Discovered new exit (range 13) 145 | -11/Scrapyard | Entered Materials 309 | -10/Materials | Build established: Mutant 425 | -10/Materials | Discovered new exit (range 12) 535 | -10/Materials | Discovered new exit (range 16) 738 | -10/Materials | Entered Mines 781 | -10/Mines | Core integrity fell below 50% 883 | -10/Mines | Deemed a non-threat by the Exiles lab entrance 885 | -10/Mines | Discovered new exit (range 5) 891 | -10/Mines | Entered Exiles 891 | -10/Exiles | Found Exiles lab destroyed 922 | -10/Exiles | Discovered new exit (range 15) 1520 | -10/Exiles | Learned location of Zion (-6) 1635 | -10/Exiles | Discovered new exit (range 14) 3296 | -10/Exiles | Entered Mines 3297 | -9/Mines | Assembled infested the area 3347 | -9/Mines | Learned 4 Materials zone layouts 3383 | -9/Mines | Found a hidden stash of uninstalled traps 3488 | -9/Mines | Learned Materials emergency access door positions 3790 | -9/Mines | Learned 2 Materials zone layouts 3904 | -9/Mines | Discovered new exit (range 5) 3909 | -9/Mines | Entered Materials 3909 | -8/Materials | Evolved 4 slots: Power x1, Propulsion x1, Utility x2 3910 | -8/Materials | Identified exit to Factory 4141 | -8/Materials | Lost 8 parts (2p3n1u2w) 4167 | -8/Materials | Core integrity fell below 50% 4193 | -8/Materials | Core integrity fell below 20% 4200 | -8/Materials | Destroyed by S-10 Pest with Light Assault Rifle Last Messages --------------- 04146_ U-05 Engineer lays Concrete. 04150_ U-05 Engineer builds a Wall. 04150_ U-05 Engineer lays Concrete. 04153_ U-05 Engineer builds a Wall. 04155_ U-05 Engineer lays Concrete. 04157_ U-05 Engineer builds a Wall. 04164_ S-10 Pest IFF system glitched. 04165_ Assault Rifle destroyed. 04168_ Critical hit (Burn: +37). 04171_ S-10 Pest misfires. 04171_ Assault Cannon destroyed. 04173_ Imp. Light Armor Plating destroyed. 04174_ U-05 Engineer lays Concrete. 04174_ Mak. Transmission Jammer destroyed. 04174_ Hcp. Matter Pod destroyed. 04175_ U-05 Engineer builds a Wall. 04183_ Critical hit (Burn: +37). 04189_ Lgt. Ion Engine destroyed. 04193_ U-05 Engineer lays Concrete. 04193_ Lgt. Treads destroyed. Map ----- +----------------------------------------------------+ | # #????????????????????????????# | | """ ####+#######???????????????????????????# | | """" + ???????????????????????????# | | """" ### ???????????????????????????# | | """" #?# ???????????????????????????# | | """ #?# ???????????????????????????# ### | | #?# ??? ? ??????????????????# #?? | | #?# ??? #????????????????# #?? | | #+####### ?? #????????????????# #?? | | ?? #????????????????# #?? | | ?? = #????????????????# #?? | | ######## ?? % #????????????????# #?? | | ##### # # ?? % #????????????????# #?? | | ????# # ######### #????????????????# #?? | | ????# # #??# # ?????????????????# #?? | | ##### + #??# """ # ????########?????# #?? | | ## # #??# "G" + ??+?? [ #?????# #?? | | ## # #??# "%" # ###?# ? ]#?????# #?? | | ## ########??#! % # # #?# """ ####### #?? | | ## #?????????# !# # #?# """"" # ? ?? | | ## #?????????# ## # # #?# """"" # ######### | | ??????????????#### #### ##??#! """"" # # | | ??????????????# # ##??# """ + + """ | | ??????????????# """" #u#???# ! # # """ | | ??????????????# """" ! #g#########+##### # """ | | ??????????????# """" #Y@ # | | ??????????????# s w + | | ??????????????# """" # a # | | ??????????????# """" ######## # [[ ! | | ??????????????# """" #??????# !!]# [ | | ??????????????# #??????# !]]######### | | ??????????????##########??????# !] ######### | | ??????????????????????????????# ^ | | ??????????????????????????????+ | | ??????????????????????????????# [ % | | ??????????????????????????????# ############ ### | | ??????????????????????????????# #???????######## | | ??????????????????????????????# #????????# | | ????????????????????????####### ########?#/ """" | | ????????????????? ### """" | | ????????????????? + """" | | ??????????????????"" ### """" | | ???????????????????"" ########+##### #?# """" | | ???????????????????"" ???????????????# #?# """" | | ?????????????????????????????????????# #?# """" | | ?????????????????????????????????????# #?# | | ?????????????????????????????????????# #?####### | | ?????????????????????????????????????# #???????? | | ?????????????????????????????????????# ???????? | | ?????????????????????????????????????## ##???????? | +----------------------------------------------------+ Best States ------------- Heat Dissipation 31 Energy Generation 15 Energy Capacity 250 Matter Stores 500 Matter Capacity 500 Sight Range 16 Terrain Scan Density 10 Jamming Range 14 Armor Coverage 150 Power Shielding 33 Weapon Shielding 33 Evasion (%) 40 Recoil Reduction 2 Offensive Hacking 11 Item Schematics ----------------- None Robot Schematics ------------------ None Fabricated ------------ Nothing Repaired ---------- Nothing Alien Tech Used ----------------- None Achievements -------------- Dramatic Entrance I Survived The Infestation Loot Pinata Challenges ------------ None Game ------ Seed MachineBottomlessBeam Manual? 0 Play Time 00:38:06 Cumulative 5.0 hours Start 2025.09.17 @ 18:41:04 End 2025.09.17 @ 19:20:58 Sessions 1 Manual Loads 0 Difficulty Rogue Special Mode None Game No. 10 Rogue 10 Adventurer 0 Explorer 0 Win Type - Total 0 Types 0/0/0/0/0/0/0/0/0/0 Lore% 8 Gallery% 9 Achievement% 12 Wizard Run 0 Options --------- Layout 0 ASCII 0 Keyboard 0 Movement Mouse Keybinds 0 Fullscreen 1 Font 18/SmallcapsGlow Map View 38x25 Zoom Use 97% Tactical HUD 1 Map Filters NONE Filters NONE Steam 1 RUN: 551c770b-5264-4eee-88dc-c48ca8e970ca